[Event "Early-Titled-Tuesday-Blitz-January-16-2024"]
[Site "Chess.com"]
[Date "2024.01.16"]
[Round "6"]
[White "baki83"]
[Black "shimastream"]
[Result "0-1"]
[WhiteElo "2871"]
[BlackElo "3022"]
[TimeControl "180+1"]
[EndTime "9:11:20 PST"]
[Termination "shimastream won by resignation"]

1. e4 {[%clk 0:03:00.9]} 1... e6 {[%clk 0:02:56.1]} 2. d4 {[%clk 0:02:59.8]}
2... d5 {[%clk 0:02:56]} 3. Nd2 {[%clk 0:02:59.1]} 3... b6 {[%clk 0:02:42.9]} 4.
exd5 {[%clk 0:02:52.7]} 4... Qxd5 {[%clk 0:02:38.1]} 5. Ngf3 {[%clk 0:02:36]}
5... Nf6 {[%clk 0:02:34.9]} 6. Bc4 {[%clk 0:02:34.8]} 6... Qd8 {[%clk
0:02:33.7]} 7. Qe2 {[%clk 0:02:35.1]} 7... Bb7 {[%clk 0:02:23.6]} 8. O-O {[%clk
0:02:32.6]} 8... Be7 {[%clk 0:02:22.9]} 9. c3 {[%clk 0:02:32.8]} 9... O-O {[%clk
0:02:22.5]} 10. Ne5 {[%clk 0:02:33.1]} 10... Nd5 {[%clk 0:02:14.8]} 11. Ndf3
{[%clk 0:02:26.3]} 11... Nd7 {[%clk 0:02:14.3]} 12. Rd1 {[%clk 0:02:09.5]} 12...
N7f6 {[%clk 0:01:53.3]} 13. Bb3 {[%clk 0:02:00.5]} 13... Nd7 {[%clk 0:01:35]}
14. c4 {[%clk 0:01:54.5]} 14... N5f6 {[%clk 0:01:34.8]} 15. Bf4 {[%clk
0:01:54.6]} 15... Qc8 {[%clk 0:01:21.7]} 16. Rac1 {[%clk 0:01:32.2]} 16... Nxe5
{[%clk 0:00:50.3]} 17. dxe5 {[%clk 0:01:32.5]} 17... Nd7 {[%clk 0:00:50.1]} 18.
Bc2 {[%clk 0:01:32.9]} 18... Rd8 {[%clk 0:00:45.5]} 19. Ng5 {[%clk 0:01:15.8]}
19... Nf8 {[%clk 0:00:38.8]} 20. Qh5 {[%clk 0:01:14.2]} 20... Bxg5 {[%clk
0:00:35.6]} 21. Bxg5 {[%clk 0:01:13.3]} 21... Rxd1+ {[%clk 0:00:36]} 22. Rxd1
{[%clk 0:01:13.6]} 22... Qe8 {[%clk 0:00:36.3]} 23. b3 {[%clk 0:00:57.6]} 23...
Qc6 {[%clk 0:00:30.1]} 24. Qh3 {[%clk 0:00:48.2]} 24... Ng6 {[%clk 0:00:27.2]}
25. Be3 {[%clk 0:00:45.3]} 25... Qe8 {[%clk 0:00:18.6]} 26. Bxg6 {[%clk
0:00:42.5]} 26... fxg6 {[%clk 0:00:18.4]} 27. Qh4 {[%clk 0:00:41.5]} 27... h6
{[%clk 0:00:18.1]} 28. f3 {[%clk 0:00:41.3]} 28... g5 {[%clk 0:00:17.9]} 29. Qd4
{[%clk 0:00:41.4]} 29... Bc6 {[%clk 0:00:18]} 30. h3 {[%clk 0:00:41.7]} 30...
Qg6 {[%clk 0:00:17.2]} 31. Qd3 {[%clk 0:00:41.5]} 31... Qf7 {[%clk 0:00:12.8]}
32. a4 {[%clk 0:00:40.7]} 32... Rf8 {[%clk 0:00:11.8]} 33. Qc2 {[%clk
0:00:37.2]} 33... Qe7 {[%clk 0:00:10.5]} 34. Rd3 {[%clk 0:00:35.8]} 34... h5
{[%clk 0:00:09]} 35. Qd2 {[%clk 0:00:32.3]} 35... g4 {[%clk 0:00:09]} 36. fxg4
{[%clk 0:00:32.1]} 36... hxg4 {[%clk 0:00:09]} 37. hxg4 {[%clk 0:00:31.2]} 37...
Qh4 {[%clk 0:00:08.1]} 38. Bg5 {[%clk 0:00:24.7]} 38... Qxg4 {[%clk 0:00:07.8]}
39. Rd8 {[%clk 0:00:24.8]} 39... Rxd8 {[%clk 0:00:06.7]} 40. Bxd8 {[%clk
0:00:25.7]} 40... Qe4 {[%clk 0:00:05]} 41. Bxc7 {[%clk 0:00:24.4]} 41... Qb1+
{[%clk 0:00:04.9]} 42. Kh2 {[%clk 0:00:24.6]} 42... Kh7 {[%clk 0:00:04.5]} 43.
b4 {[%clk 0:00:23.5]} 43... Qe4 {[%clk 0:00:03.5]} 44. c5 {[%clk 0:00:17.4]}
44... bxc5 {[%clk 0:00:03.4]} 45. b5 {[%clk 0:00:17.6]} 45... Bd5 {[%clk
0:00:03.5]} 46. a5 {[%clk 0:00:18]} 46... c4 {[%clk 0:00:03.8]} 47. b6 {[%clk
0:00:18.1]} 47... axb6 {[%clk 0:00:03.8]} 48. axb6 {[%clk 0:00:18.5]} 48... c3
{[%clk 0:00:04.5]} 49. Qf2 {[%clk 0:00:01.6]} 49... c2 {[%clk 0:00:03.7]} 50. b7
{[%clk 0:00:01.1]} 50... Bxb7 {[%clk 0:00:03.4]} 51. Qxc2 {[%clk 0:00:01.8]}
51... Qxc2 {[%clk 0:00:03.5]} 0-1

[Event "Early-Titled-Tuesday-Blitz-January-16-2024"]
[Site "Chess.com"]
[Date "2024.01.16"]
[Round "6"]
[White "Vesper2018"]
[Black "Alexchess1984"]
[Result "1-0"]
[WhiteElo "2566"]
[BlackElo "2674"]
[TimeControl "180+1"]
[EndTime "9:11:20 PST"]
[Termination "Vesper2018 won by resignation"]

1. e4 {[%clk 0:03:00.9]} 1... d5 {[%clk 0:02:52.2]} 2. exd5 {[%clk 0:03:00.6]}
2... Qxd5 {[%clk 0:02:51.6]} 3. Nc3 {[%clk 0:03:00.5]} 3... Qa5 {[%clk
0:02:51.5]} 4. d4 {[%clk 0:02:59.8]} 4... Nf6 {[%clk 0:02:50.8]} 5. Nf3 {[%clk
0:02:58.2]} 5... Bf5 {[%clk 0:02:49.4]} 6. Bc4 {[%clk 0:02:55.1]} 6... e6 {[%clk
0:02:49.3]} 7. O-O {[%clk 0:02:49.8]} 7... c6 {[%clk 0:02:48.3]} 8. Qe2 {[%clk
0:02:47.1]} 8... Be7 {[%clk 0:02:46.9]} 9. Ne5 {[%clk 0:02:38.6]} 9... Nbd7
{[%clk 0:02:43.1]} 10. g4 {[%clk 0:02:27.4]} 10... Nxe5 {[%clk 0:02:34.3]} 11.
dxe5 {[%clk 0:02:14.4]} 11... Nxg4 {[%clk 0:02:33.4]} 12. Bf4 {[%clk 0:02:14.5]}
12... g5 {[%clk 0:02:31.7]} 13. Bg3 {[%clk 0:02:06.8]} 13... h5 {[%clk 0:02:30]}
14. h3 {[%clk 0:02:01.6]} 14... Nh6 {[%clk 0:02:29.7]} 15. Qxh5 {[%clk
0:01:56.2]} 15... Bg6 {[%clk 0:02:28.1]} 16. Qe2 {[%clk 0:01:39]} 16... Nf5
{[%clk 0:02:27.8]} 17. Kg2 {[%clk 0:01:39.5]} 17... Nxg3 {[%clk 0:02:22.3]} 18.
fxg3 {[%clk 0:01:38.1]} 18... O-O-O {[%clk 0:02:18.4]} 19. Bd3 {[%clk
0:01:17.5]} 19... Bxd3 {[%clk 0:01:51]} 20. cxd3 {[%clk 0:01:17.5]} 20... Rhf8
{[%clk 0:01:46.4]} 21. a3 {[%clk 0:01:07.5]} 21... Qc5 {[%clk 0:01:33.8]} 22.
Rac1 {[%clk 0:01:00]} 22... Qd4 {[%clk 0:01:33.6]} 23. Rf3 {[%clk 0:00:58.9]}
23... g4 {[%clk 0:01:32.8]} 24. hxg4 {[%clk 0:00:52.4]} 24... Bg5 {[%clk
0:01:33]} 25. Rc2 {[%clk 0:00:42]} 25... Qxg4 {[%clk 0:01:32.7]} 26. Qe4 {[%clk
0:00:35.3]} 26... Qxe4 {[%clk 0:01:14.8]} 27. Nxe4 {[%clk 0:00:34.2]} 27... Be7
{[%clk 0:01:15.4]} 28. Rcf2 {[%clk 0:00:30]} 28... Kd7 {[%clk 0:00:49]} 29. Rxf7
{[%clk 0:00:29.2]} 29... Rxf7 {[%clk 0:00:49.5]} 30. Rxf7 {[%clk 0:00:29.6]}
30... Ke8 {[%clk 0:00:50.4]} 31. Rf3 {[%clk 0:00:28.8]} 31... Rd5 {[%clk
0:00:49.6]} 32. Nf6+ {[%clk 0:00:24.8]} 32... Bxf6 {[%clk 0:00:50]} 33. exf6
{[%clk 0:00:25.4]} 33... Kf7 {[%clk 0:00:50.4]} 34. g4 {[%clk 0:00:25.6]} 34...
Rb5 {[%clk 0:00:45.3]} 35. b4 {[%clk 0:00:22.8]} 35... a5 {[%clk 0:00:45.4]} 36.
bxa5 {[%clk 0:00:15.8]} 36... Rxa5 {[%clk 0:00:45.5]} 37. Kg3 {[%clk 0:00:15.7]}
37... Rxa3 {[%clk 0:00:45.5]} 38. g5 {[%clk 0:00:16]} 38... Ra8 {[%clk
0:00:39.7]} 39. Kg4 {[%clk 0:00:15.6]} 39... Rd8 {[%clk 0:00:38.7]} 40. Rh3
{[%clk 0:00:11.8]} 40... Rd4+ {[%clk 0:00:37.4]} 41. Kh5 {[%clk 0:00:12.1]}
41... Rf4 {[%clk 0:00:31.6]} 42. Kh6 {[%clk 0:00:12.3]} 42... Rg4 {[%clk
0:00:30.4]} 43. Rh5 {[%clk 0:00:04.4]} 43... Rg1 {[%clk 0:00:28.9]} 44. Kh7
{[%clk 0:00:04.5]} 44... b5 {[%clk 0:00:27.8]} 45. Kh8 {[%clk 0:00:04.9]} 45...
Rf1 {[%clk 0:00:20.6]} 46. Rh7+ {[%clk 0:00:04.7]} 46... Kg6 {[%clk 0:00:21.2]}
47. Rg7+ {[%clk 0:00:04.7]} 47... Kh5 {[%clk 0:00:21.8]} 48. f7 {[%clk
0:00:04.3]} 48... b4 {[%clk 0:00:21.7]} 49. Kg8 {[%clk 0:00:04.6]} 49... b3
{[%clk 0:00:17.9]} 50. f8=Q {[%clk 0:00:04.8]} 50... Rxf8+ {[%clk 0:00:17.1]}
51. Kxf8 {[%clk 0:00:05.2]} 51... e5 {[%clk 0:00:16.6]} 52. Rb7 {[%clk
0:00:04.7]} 52... Kxg5 {[%clk 0:00:16.2]} 53. Rxb3 {[%clk 0:00:05]} 53... Kf4
{[%clk 0:00:16.6]} 54. Ke7 {[%clk 0:00:05.2]} 54... Ke3 {[%clk 0:00:17.2]} 55.
Kd6 {[%clk 0:00:05.3]} 55... Kd4 {[%clk 0:00:17.2]} 56. Kxc6 {[%clk 0:00:04.9]}
1-0

[Event "Early-Titled-Tuesday-Blitz-January-16-2024"]
[Site "Chess.com"]
[Date "2024.01.16"]
[Round "6"]
[White "hongnhung1234"]
[Black "elchacal664"]
[Result "1-0"]
[WhiteElo "2578"]
[BlackElo "2367"]
[TimeControl "180+1"]
[EndTime "9:11:21 PST"]
[Termination "hongnhung1234 won by checkmate"]

1. e4 {[%clk 0:03:00.9]} 1... c5 {[%clk 0:02:52.7]} 2. Nc3 {[%clk 0:03:00.3]}
2... e6 {[%clk 0:02:52.2]} 3. f4 {[%clk 0:03:00.2]} 3... a6 {[%clk 0:02:52.3]}
4. Nf3 {[%clk 0:02:59.2]} 4... d5 {[%clk 0:02:51.8]} 5. d3 {[%clk 0:02:56]} 5...
dxe4 {[%clk 0:02:47.9]} 6. Nxe4 {[%clk 0:02:53]} 6... Nd7 {[%clk 0:02:44.3]} 7.
g3 {[%clk 0:02:52.2]} 7... Ngf6 {[%clk 0:02:44.6]} 8. Nxf6+ {[%clk 0:02:51.6]}
8... Nxf6 {[%clk 0:02:45.1]} 9. Bg2 {[%clk 0:02:52]} 9... Be7 {[%clk 0:02:43.4]}
10. O-O {[%clk 0:02:51.8]} 10... O-O {[%clk 0:02:43.9]} 11. Bd2 {[%clk
0:02:49.8]} 11... Rb8 {[%clk 0:02:42.9]} 12. Ne5 {[%clk 0:02:46.5]} 12... Nd7
{[%clk 0:02:40.6]} 13. Bc3 {[%clk 0:02:45]} 13... Nxe5 {[%clk 0:02:39.9]} 14.
Bxe5 {[%clk 0:02:45.6]} 14... Bd6 {[%clk 0:02:40.3]} 15. Qe2 {[%clk 0:02:43.7]}
15... b5 {[%clk 0:02:25.3]} 16. Rad1 {[%clk 0:02:24.3]} 16... Bb7 {[%clk
0:02:18.9]} 17. d4 {[%clk 0:02:06.5]} 17... cxd4 {[%clk 0:02:14.8]} 18. Bxd4
{[%clk 0:02:07.4]} 18... Qc7 {[%clk 0:02:03.8]} 19. Qg4 {[%clk 0:01:44.8]} 19...
f5 {[%clk 0:01:53.4]} 20. Qxg7+ {[%clk 0:01:36.2]} 20... Qxg7 {[%clk 0:01:51.4]}
21. Bxg7 {[%clk 0:01:37.1]} 21... Bxg2 {[%clk 0:01:42.1]} 22. Bxf8 {[%clk
0:01:22.2]} 22... Bxf1 {[%clk 0:01:27.5]} 23. Bxd6 {[%clk 0:01:22]} 23... Be2
{[%clk 0:01:26.2]} 24. Re1 {[%clk 0:00:52.5]} 24... Rd8 {[%clk 0:01:09.8]} 25.
Rxe2 {[%clk 0:00:52.1]} 25... Rxd6 {[%clk 0:01:10.1]} 26. Kf2 {[%clk 0:00:51.5]}
26... Kf7 {[%clk 0:01:08.5]} 27. b3 {[%clk 0:00:50.7]} 27... b4 {[%clk
0:01:04.1]} 28. Ke3 {[%clk 0:00:49.7]} 28... Rd5 {[%clk 0:01:03.3]} 29. c3
{[%clk 0:00:32.2]} 29... bxc3 {[%clk 0:00:59.9]} 30. Rc2 {[%clk 0:00:32.9]}
30... Ra5 {[%clk 0:00:50.5]} 31. a4 {[%clk 0:00:31.5]} 31... Rc5 {[%clk
0:00:48.6]} 32. Kd4 {[%clk 0:00:31]} 32... Rd5+ {[%clk 0:00:47.1]} 33. Kxc3
{[%clk 0:00:31.3]} 33... a5 {[%clk 0:00:47.2]} 34. b4 {[%clk 0:00:28.5]} 34...
axb4+ {[%clk 0:00:48.1]} 35. Kxb4 {[%clk 0:00:29.4]} 35... Rd4+ {[%clk
0:00:46.6]} 36. Kb5 {[%clk 0:00:27.1]} 36... Rd8 {[%clk 0:00:46.9]} 37. Rc7+
{[%clk 0:00:23.6]} 37... Kf6 {[%clk 0:00:46.1]} 38. Rxh7 {[%clk 0:00:22.5]}
38... e5 {[%clk 0:00:47]} 39. fxe5+ {[%clk 0:00:21.1]} 39... Kxe5 {[%clk
0:00:47.9]} 40. a5 {[%clk 0:00:20.5]} 40... Rd1 {[%clk 0:00:46.4]} 41. Rh4
{[%clk 0:00:18.2]} 41... Rb1+ {[%clk 0:00:47.3]} 42. Rb4 {[%clk 0:00:18.4]}
42... Ra1 {[%clk 0:00:46.9]} 43. a6 {[%clk 0:00:18.7]} 43... f4 {[%clk
0:00:47.2]} 44. gxf4+ {[%clk 0:00:18.5]} 44... Kd6 {[%clk 0:00:47.7]} 45. Ra4
{[%clk 0:00:18.1]} 45... Rb1+ {[%clk 0:00:45.8]} 46. Kc4 {[%clk 0:00:18.4]}
46... Rb8 {[%clk 0:00:42.4]} 47. a7 {[%clk 0:00:18.4]} 47... Ra8 {[%clk
0:00:43.3]} 48. Kd4 {[%clk 0:00:18.7]} 48... Ke6 {[%clk 0:00:44]} 49. Ke4 {[%clk
0:00:19.1]} 49... Kf6 {[%clk 0:00:43.8]} 50. Ra6+ {[%clk 0:00:18.9]} 50... Kg7
{[%clk 0:00:44.7]} 51. f5 {[%clk 0:00:19.8]} 51... Kh7 {[%clk 0:00:45.3]} 52.
Kf4 {[%clk 0:00:19.8]} 52... Kg7 {[%clk 0:00:46.2]} 53. f6+ {[%clk 0:00:20]}
53... Kf7 {[%clk 0:00:47.1]} 54. Kf5 {[%clk 0:00:20.7]} 54... Kg8 {[%clk
0:00:47.3]} 55. Kg6 {[%clk 0:00:21]} 55... Kh8 {[%clk 0:00:47.2]} 56. h4 {[%clk
0:00:19.9]} 56... Rg8+ {[%clk 0:00:42.8]} 57. Kh6 {[%clk 0:00:19.5]} 57... Ra8
{[%clk 0:00:42.1]} 58. Rb6 {[%clk 0:00:19.6]} 58... Rf8 {[%clk 0:00:30.3]} 59.
Rb8 {[%clk 0:00:19.4]} 59... Kg8 {[%clk 0:00:31.2]} 60. Rxf8+ {[%clk 0:00:19]}
60... Kxf8 {[%clk 0:00:31]} 61. a8=Q+ {[%clk 0:00:19.9]} 61... Kf7 {[%clk
0:00:31.5]} 62. Kg5 {[%clk 0:00:19.8]} 62... Ke6 {[%clk 0:00:32.4]} 63. Qe8+
{[%clk 0:00:19.2]} 63... Kd6 {[%clk 0:00:32.4]} 64. f7 {[%clk 0:00:19.6]} 64...
Kc5 {[%clk 0:00:33.1]} 65. f8=Q+ {[%clk 0:00:20.1]} 65... Kd4 {[%clk 0:00:34]}
66. Qd6+ {[%clk 0:00:20]} 66... Kc3 {[%clk 0:00:34.5]} 67. Qec6+ {[%clk
0:00:20.4]} 67... Kb3 {[%clk 0:00:35.4]} 68. Qb8+ {[%clk 0:00:20.6]} 68... Ka2
{[%clk 0:00:35.2]} 69. Qa6# {[%clk 0:00:21.5]} 1-0

[Event "Early-Titled-Tuesday-Blitz-January-16-2024"]
[Site "Chess.com"]
[Date "2024.01.16"]
[Round "6"]
[White "sergoy"]
[Black "Kirill_Klukin"]
[Result "1/2-1/2"]
[WhiteElo "3008"]
[BlackElo "2868"]
[TimeControl "180+1"]
[EndTime "9:11:23 PST"]
[Termination "Game drawn by repetition"]

1. d4 {[%clk 0:02:41.3]} 1... f5 {[%clk 0:02:52.9]} 2. Nf3 {[%clk 0:02:40.4]}
2... e6 {[%clk 0:02:52.6]} 3. c4 {[%clk 0:02:41]} 3... Nf6 {[%clk 0:02:52.6]} 4.
g3 {[%clk 0:02:41.6]} 4... c6 {[%clk 0:02:52.6]} 5. Bg2 {[%clk 0:02:42.1]} 5...
d5 {[%clk 0:02:53.3]} 6. O-O {[%clk 0:02:42.6]} 6... Bd6 {[%clk 0:02:53.5]} 7.
Nbd2 {[%clk 0:02:41.2]} 7... O-O {[%clk 0:02:53]} 8. b3 {[%clk 0:02:37.7]} 8...
b6 {[%clk 0:02:52.6]} 9. Bb2 {[%clk 0:02:37.7]} 9... Bb7 {[%clk 0:02:53]} 10.
Ne5 {[%clk 0:02:37.7]} 10... Qe7 {[%clk 0:02:52.5]} 11. Ndf3 {[%clk 0:02:35.4]}
11... a5 {[%clk 0:02:52.4]} 12. a3 {[%clk 0:02:33.4]} 12... Na6 {[%clk
0:02:52.2]} 13. e3 {[%clk 0:02:29.3]} 13... Ne4 {[%clk 0:02:47.6]} 14. Qe2
{[%clk 0:02:27.3]} 14... Rfc8 {[%clk 0:02:39.6]} 15. Nd2 {[%clk 0:02:08.7]}
15... Bxe5 {[%clk 0:02:36.5]} 16. dxe5 {[%clk 0:02:08.2]} 16... c5 {[%clk
0:02:30.5]} 17. cxd5 {[%clk 0:02:07.3]} 17... exd5 {[%clk 0:02:30.8]} 18. f4
{[%clk 0:01:55.7]} 18... Nc7 {[%clk 0:02:29.4]} 19. Rfe1 {[%clk 0:01:47.9]}
19... Ne6 {[%clk 0:02:16.2]} 20. Nxe4 {[%clk 0:01:45.1]} 20... dxe4 {[%clk
0:02:07.4]} 21. g4 {[%clk 0:01:45.5]} 21... g6 {[%clk 0:01:28.4]} 22. Bh3 {[%clk
0:01:45]} 22... Rf8 {[%clk 0:01:10.6]} 23. Rad1 {[%clk 0:01:43.7]} 23... Ba6
{[%clk 0:01:04.7]} 24. Qg2 {[%clk 0:01:43.3]} 24... Kh8 {[%clk 0:00:33]} 25. Rd6
{[%clk 0:01:43]} 25... Rad8 {[%clk 0:00:32.5]} 26. Kh1 {[%clk 0:01:43.2]} 26...
Ng7 {[%clk 0:00:23.7]} 27. Red1 {[%clk 0:01:33]} 27... Bc8 {[%clk 0:00:22.5]}
28. gxf5 {[%clk 0:01:11.9]} 28... Bxf5 {[%clk 0:00:21.5]} 29. Bxf5 {[%clk
0:01:07.7]} 29... Nxf5 {[%clk 0:00:21.7]} 30. Qxe4 {[%clk 0:01:06.3]} 30... Qh4
{[%clk 0:00:08.4]} 31. Qf3 {[%clk 0:00:48.3]} 31... Nxd6 {[%clk 0:00:06.6]} 32.
exd6+ {[%clk 0:00:49.2]} 32... Kg8 {[%clk 0:00:06.9]} 33. Be5 {[%clk 0:00:47.2]}
33... Rf7 {[%clk 0:00:04]} 34. Qc6 {[%clk 0:00:43.5]} 34... Qg4 {[%clk
0:00:03.9]} 35. Rg1 {[%clk 0:00:43.2]} 35... Qe6 {[%clk 0:00:02.6]} 36. Rg3
{[%clk 0:00:25.1]} 36... Qxb3 {[%clk 0:00:02.5]} 37. h4 {[%clk 0:00:24.6]} 37...
Qd1+ {[%clk 0:00:02.3]} 38. Kh2 {[%clk 0:00:25.2]} 38... Qe2+ {[%clk 0:00:02.7]}
39. Kh3 {[%clk 0:00:21.7]} 39... Qf1+ {[%clk 0:00:03]} 40. Kh2 {[%clk
0:00:22.3]} 40... Qe2+ {[%clk 0:00:03.6]} 41. Kh3 {[%clk 0:00:20.3]} 41... Qf2
{[%clk 0:00:04.3]} 42. h5 {[%clk 0:00:19.3]} 42... Qf1+ {[%clk 0:00:05]} 43. Qg2
{[%clk 0:00:13.7]} 43... Qxg2+ {[%clk 0:00:05.2]} 44. Rxg2 {[%clk 0:00:14.6]}
44... Rfd7 {[%clk 0:00:03.2]} 45. hxg6 {[%clk 0:00:14.7]} 45... hxg6 {[%clk
0:00:04.1]} 46. Rxg6+ {[%clk 0:00:14.7]} 46... Kf7 {[%clk 0:00:05]} 47. f5
{[%clk 0:00:15.1]} 47... c4 {[%clk 0:00:05]} 48. Rh6 {[%clk 0:00:11.5]} 48... c3
{[%clk 0:00:05.2]} 49. Rh7+ {[%clk 0:00:11.7]} 49... Kg8 {[%clk 0:00:05.5]} 50.
Rh8+ {[%clk 0:00:12.2]} 50... Kf7 {[%clk 0:00:05.7]} 51. Rh7+ {[%clk 0:00:12.7]}
51... Kg8 {[%clk 0:00:06.1]} 52. Rh8+ {[%clk 0:00:09.4]} 52... Kf7 {[%clk
0:00:06.3]} 53. Rh7+ {[%clk 0:00:05.6]} 1/2-1/2

[Event "Early-Titled-Tuesday-Blitz-January-16-2024"]
[Site "Chess.com"]
[Date "2024.01.16"]
[Round "6"]
[White "Onischuk_V"]
[Black "Nouali_Mohamed"]
[Result "1-0"]
[WhiteElo "2797"]
[BlackElo "2594"]
[TimeControl "180+1"]
[EndTime "9:11:23 PST"]
[Termination "Onischuk_V won by resignation"]

1. e4 {[%clk 0:02:46.7]} 1... c5 {[%clk 0:02:59.3]} 2. Nf3 {[%clk 0:02:46.8]}
2... Nc6 {[%clk 0:02:59.6]} 3. Bb5 {[%clk 0:02:46.2]} 3... Qc7 {[%clk
0:02:59.9]} 4. O-O {[%clk 0:02:45]} 4... e6 {[%clk 0:03:00.3]} 5. Re1 {[%clk
0:02:43.7]} 5... a6 {[%clk 0:03:00.5]} 6. Bxc6 {[%clk 0:02:41.8]} 6... Qxc6
{[%clk 0:03:01.4]} 7. c4 {[%clk 0:02:41.7]} 7... d6 {[%clk 0:02:51.9]} 8. Nc3
{[%clk 0:02:41.6]} 8... Nf6 {[%clk 0:02:51.3]} 9. d4 {[%clk 0:02:40.6]} 9...
cxd4 {[%clk 0:02:51]} 10. Nxd4 {[%clk 0:02:41]} 10... Qxc4 {[%clk 0:02:45]} 11.
Bg5 {[%clk 0:02:40.9]} 11... Be7 {[%clk 0:02:25.5]} 12. Rc1 {[%clk 0:02:40.6]}
12... Qb4 {[%clk 0:02:25.4]} 13. Nb3 {[%clk 0:02:15.5]} 13... Qb6 {[%clk
0:01:50.7]} 14. e5 {[%clk 0:01:56.1]} 14... dxe5 {[%clk 0:01:45.9]} 15. Qf3
{[%clk 0:01:56]} 15... Bd7 {[%clk 0:01:10.9]} 16. Be3 {[%clk 0:01:46.3]} 16...
Qb4 {[%clk 0:01:07.8]} 17. Qg3 {[%clk 0:01:09.3]} 17... Qg4 {[%clk 0:01:02.9]}
18. Qxe5 {[%clk 0:01:05.4]} 18... Bc6 {[%clk 0:01:02.1]} 19. Qg3 {[%clk
0:01:01]} 19... Bd6 {[%clk 0:00:42.8]} 20. Qxg4 {[%clk 0:00:57.4]} 20... Nxg4
{[%clk 0:00:43.7]} 21. Bd4 {[%clk 0:00:47.7]} 21... Bxh2+ {[%clk 0:00:28.3]} 22.
Kf1 {[%clk 0:00:43.5]} 22... Bf4 {[%clk 0:00:28.3]} 23. Rcd1 {[%clk 0:00:36]}
23... Rd8 {[%clk 0:00:23.9]} 24. Na5 {[%clk 0:00:33.5]} 24... e5 {[%clk
0:00:17.2]} 25. Nxc6 {[%clk 0:00:28.4]} 25... bxc6 {[%clk 0:00:18.1]} 26. g3
{[%clk 0:00:22.2]} 26... O-O {[%clk 0:00:13.1]} 27. Bc5 {[%clk 0:00:20.4]} 27...
Bg5 {[%clk 0:00:07.1]} 28. Bxf8 {[%clk 0:00:20]} 28... Rxf8 {[%clk 0:00:07.3]}
29. Rd6 {[%clk 0:00:18.8]} 29... Nf6 {[%clk 0:00:04.7]} 30. Rxc6 {[%clk
0:00:18.2]} 30... Bd2 {[%clk 0:00:02.3]} 31. Rd1 {[%clk 0:00:18.4]} 31... Bxc3
{[%clk 0:00:02.4]} 32. Rxc3 {[%clk 0:00:18.5]} 32... e4 {[%clk 0:00:03.3]} 33.
Rdc1 {[%clk 0:00:17.9]} 33... h5 {[%clk 0:00:03.7]} 34. Rc8 {[%clk 0:00:17.7]}
34... Rxc8 {[%clk 0:00:04.3]} 35. Rxc8+ {[%clk 0:00:17.3]} 35... Kh7 {[%clk
0:00:05.2]} 36. Ra8 {[%clk 0:00:16.4]} 36... Kg6 {[%clk 0:00:06]} 37. Rxa6
{[%clk 0:00:16.5]} 37... Kf5 {[%clk 0:00:06.9]} 38. a4 {[%clk 0:00:16.6]} 38...
Kg4 {[%clk 0:00:06.8]} 39. a5 {[%clk 0:00:16.3]} 39... e3 {[%clk 0:00:05.9]} 40.
fxe3 {[%clk 0:00:15.7]} 40... Kxg3 {[%clk 0:00:06.3]} 41. Rxf6 {[%clk
0:00:15.1]} 41... gxf6 {[%clk 0:00:03.7]} 42. a6 {[%clk 0:00:15.7]} 42... h4
{[%clk 0:00:04.6]} 43. a7 {[%clk 0:00:16.1]} 43... h3 {[%clk 0:00:05.4]} 44.
a8=Q {[%clk 0:00:16.4]} 44... f5 {[%clk 0:00:05]} 45. Qb8+ {[%clk 0:00:14]}
45... Kh4 {[%clk 0:00:04.1]} 46. Qf4+ {[%clk 0:00:14.6]} 46... Kh5 {[%clk
0:00:03.7]} 47. Qxf5+ {[%clk 0:00:14]} 47... Kh4 {[%clk 0:00:04.2]} 48. Qf4+
{[%clk 0:00:13.9]} 48... Kh5 {[%clk 0:00:04.4]} 49. Qg3 {[%clk 0:00:14.2]} 49...
f5 {[%clk 0:00:03.9]} 50. Qxh3+ {[%clk 0:00:14.2]} 1-0